Workbook

Sheet паспорт ФХП
A1: ПАТ "УКРТРАНСГАЗ" | G1: ПАСПОРТ ФІЗИКО-ХІМІЧНИХ ПОКАЗНИКІВ ПРИРОДНОГО ГАЗУ №619
A2: Філія "УМГ"ХАРКІВТРАНСГАЗ" | G2: переданого Миколаївським ЛВУМГ та прийнятого ПАТ "Миколаївгаз", ТОВ "МГЗ", ТОВ "Сандора", РВУ "Харківавтогаз", ДП НВКГ "Зоря-Машпроект", УМГ "ПРИКАРПАТТРАНСГАЗ" ПВВГ Ряснопіль
A3: Миколаївське ЛВУМГ | G3: Маршрут № 619
A4: Вимірювальна хіміко-аналітична лабораторія
A5: Свідоцтво про атестацію № РН0050/2015 дійсне до 27.05.2020 р. | K5: по газопроводу ШДО-ШДКРі | V5: за період з | X5: 01.05.2017 р. | Z5: по | AA5: 31.05.2017 р.
A7: Число місяця | B7: Компонентний склад, мол. % | N7: Фізико-хімічні показники газу обчислені на основі компонентного складу, 101,325 кПа | X7: Температура точки роси за вологою (Р = 3.92 МПа), °С | Y7: Температура точки роси за вуглеводнями, °С | Z7: Вміст сірководню, г/м3 | AA7: Вміст меркаптанової сірки, г/м3 | AB7: Вміст механічних домішок, г/м3
N8: Густина абсолютна, кг/м3,при 20 °С, | O8: Температура вимірювання/згоряння при 20/25°С
B9: метан, С1 | C9: етан, С2 | D9: пропан, С3 | E9: ізо-бутан, і-С4 | F9: н-бутан, н-С4 | G9: нео-пентан, нео-С5 | H9: ізо-пентан, і-С5 | I9: н-пентан, н-С5 | J9: гексани та вищі, С6+ | K9: кисень, О2 | L9: азот, N2 | M9: діоксид вуглецю, CО2 | O9: Теплота згоряння нижча | R9: Теплота згоряння вища | U9: Число Воббе вище
O10: ккал/м³ | P10: МДж/м³ | Q10: кВт⋅год/м³ | R10: ккал/м³ | S10: МДж/м³ | T10: кВт⋅год/м³ | U10: ккал/м³ | V10: МДж/м³ | W10: кВт⋅год/м³
A11: 1 | B11: 95.3448 | C11: 2.6143 | D11: 0.8384 | E11: 0.1291 | F11: 0.1312 | G11: 0.0015 | H11: 0.0232 | I11: 0.0183 | J11: 0.0174 | K11: 0.0078 | L11: 0.6631 | M11: 0.211 | N11: 0.7055 | O11: 8243 | P11: 34.51 | Q11: =P11/3.6 -> 9.586111111 | R11: 9138 | S11: 38.26 | T11: =S11/3.6 -> 10.62777778 | U11: 11945 | V11: 50.01 | W11: =V11/3.6 -> 13.89166667 | AC11: =SUM(B11:M11)+$K$42+$N$42 -> 100.0001
A12: 2 | B12: 95.2739 | C12: 2.6063 | D12: 0.8299 | E12: 0.1272 | F12: 0.1345 | G12: 0.0018 | H12: 0.025 | I12: 0.0201 | J12: 0.0213 | K12: 0.0077 | L12: 0.7342 | M12: 0.2181 | N12: 0.706 | O12: 8238 | P12: 34.49 | Q12: =P12/3.6 -> 9.580555556 | R12: 9133 | S12: 38.24 | T12: =S12/3.6 -> 10.62222222 | U12: 11930 | V12: 49.95 | W12: =V12/3.6 -> 13.875 | AC12: 100
A13: 3 | B13: 94.9381 | C13: 2.7466 | D13: 0.8807 | E13: 0.1331 | F13: 0.1475 | G13: 0.0021 | H13: 0.0293 | I13: 0.0239 | J13: 0.0295 | K13: 0.0075 | L13: 0.8191 | M13: 0.2425 | N13: 0.7089 | O13: 8252 | P13: 34.55 | Q13: 9.597222222 | R13: 9148 | S13: 38.3 | T13: 10.63888889 | U13: 11926 | V13: 49.93 | W13: 13.86944444 | X13: -18.5 | Y13: -8 | AC13: 99.9999 | AD13: =IF(AC13=100,"ОК"," ") -> 
A14: 4 | B14: 95.0495 | C14: 2.7523 | D14: 0.8802 | E14: 0.1356 | F14: 0.1411 | G14: 0.002 | H14: 0.0271 | I14: 0.0212 | J14: 0.0252 | K14: 0.0076 | L14: 0.7257 | M14: 0.2324 | N14: 0.7081 | O14: 8257 | P14: 34.57 | Q14: 9.602777778 | R14: 9155 | S14: 38.33 | T14: 10.64722222 | U14: 11942 | V14: 50 | W14: 13.88888889 | X14: -16.8 | Y14: -7 | AC14: 99.9999 | AD14: =IF(AC14=100,"ОК"," ") -> 
A15: 5 | B15: 95.2069 | C15: 2.7305 | D15: 0.8669 | E15: 0.1361 | F15: 0.1332 | G15: 0.0016 | H15: 0.0241 | I15: 0.0178 | J15: 0.0154 | K15: 0.0069 | L15: 0.6421 | M15: 0.2186 | N15: 0.7066 | O15: 8257 | P15: 34.57 | Q15: 9.602777778 | R15: 9153 | S15: 38.32 | T15: 10.64444444 | U15: 11952 | V15: 50.04 | W15: 13.9 | X15: -16.7 | Y15: -8 | AC15: 100.0001
A16: 6 | B16: 95.2253 | C16: 2.7002 | D16: 0.8621 | E16: 0.1351 | F16: 0.1344 | G16: 0.0017 | H16: 0.0248 | I16: 0.0185 | J16: 0.0168 | K16: 0.0067 | L16: 0.6576 | M16: 0.2169 | N16: 0.7065 | O16: 8255 | P16: 34.56 | Q16: 9.6 | R16: 9150 | S16: 38.31 | T16: 10.64166667 | U16: 11949 | V16: 50.03 | W16: 13.89722222 | AC16: 100.0001
A17: 7 | B17: 95.1513 | C17: 2.7234 | D17: 0.8743 | E17: 0.1348 | F17: 0.1374 | G17: 0.0018 | H17: 0.026 | I17: 0.0197 | J17: 0.0196 | K17: 0.0065 | L17: 0.6791 | M17: 0.2261 | N17: 0.7072 | O17: 8257 | P17: 34.57 | Q17: 9.602777778 | R17: 9153 | S17: 38.32 | T17: 10.64444444 | U17: 11947 | V17: 50.02 | W17: 13.89444444 | AC17: 100 | AD17: ОК
A18: 8 | B18: 95.0114 | C18: 2.7876 | D18: 0.9047 | E18: 0.1379 | F18: 0.1452 | G18: 0.0019 | H18: 0.0281 | I18: 0.0216 | J18: 0.0228 | K18: 0.0067 | L18: 0.6965 | M18: 0.2357 | N18: 0.7085 | O18: 8266 | P18: 34.61 | Q18: 9.613888889 | R18: 9162 | S18: 38.36 | T18: 10.65555556 | U18: 11949 | V18: 50.03 | W18: 13.89722222 | AC18: 100.0001
A19: 9 | B19: 94.9428 | C19: 2.8144 | D19: 0.9288 | E19: 0.1406 | F19: 0.1528 | G19: 0.0019 | H19: 0.0298 | I19: 0.0231 | J19: 0.0246 | K19: 0.0065 | L19: 0.6987 | M19: 0.2361 | N19: 0.7093 | O19: 8274 | P19: 34.64 | Q19: 9.622222222 | R19: 9172 | S19: 38.4 | T19: 10.66666667 | U19: 11954 | V19: 50.05 | W19: 13.90277778 | AC19: 100.0001
A20: 10 | B20: 94.6876 | C20: 2.9099 | D20: 0.9757 | E20: 0.1478 | F20: 0.1717 | G20: 0.0021 | H20: 0.0352 | I20: 0.0284 | J20: 0.03 | K20: 0.0065 | L20: 0.7641 | M20: 0.2411 | N20: 0.7117 | O20: 8288 | P20: 34.7 | Q20: 9.638888889 | R20: 9188 | S20: 38.47 | T20: 10.68611111 | U20: 11954 | V20: 50.05 | W20: 13.90277778 | X20: -16.4 | Y20: -7.3 | AC20: 100.0001
A21: 11 | B21: 94.3766 | C21: 3.0583 | D21: 1.0686 | E21: 0.1614 | F21: 0.1981 | G21: 0.0023 | H21: 0.0421 | I21: 0.0347 | J21: 0.0351 | K21: 0.0057 | L21: 0.7647 | M21: 0.2525 | N21: 0.7149 | O21: 8321 | P21: 34.84 | Q21: 9.677777778 | R21: 9222 | S21: 38.61 | T21: 10.725 | U21: 11973 | V21: 50.13 | W21: 13.925 | X21: -15.8 | Y21: -8 | Z21: < 0,0001 | AA21: 0.0003 | AC21: 100.0001
A22: 12 | B22: 94.2886 | C22: 3.0985 | D22: 1.0971 | E22: 0.1648 | F22: 0.2073 | G22: 0.0024 | H22: 0.0449 | I22: 0.0375 | J22: 0.0387 | K22: 0.0064 | L22: 0.755 | M22: 0.2589 | N22: 0.716 | O22: 8333 | P22: 34.89 | Q22: 9.691666667 | R22: 9234 | S22: 38.66 | T22: 10.73888889 | U22: 11978 | V22: 50.15 | W22: 13.93055556 | X22: -15.1 | Y22: -7.5 | AB22: відсутні | AC22: 100.0001
A23: 13 | B23: 94.7346 | C23: 2.9064 | D23: 0.996 | E23: 0.1523 | F23: 0.1768 | G23: 0.0021 | H23: 0.0369 | I23: 0.0301 | J23: 0.0318 | K23: 0.0066 | L23: 0.6882 | M23: 0.2382 | N23: 0.7118 | O23: 8300 | P23: 34.75 | Q23: 9.652777778 | R23: 9200 | S23: 38.52 | T23: 10.7 | U23: 11971 | V23: 50.12 | W23: 13.92222222 | X23: -15.3 | Y23: -7.5 | AC23: 100 | AD23: ОК
A24: 14 | B24: 95.1612 | C24: 2.7252 | D24: 0.888 | E24: 0.1388 | F24: 0.1462 | G24: 0.0019 | H24: 0.0283 | I24: 0.0219 | J24: 0.0196 | K24: 0.0065 | L24: 0.6459 | M24: 0.2166 | N24: 0.7074 | O24: 8264 | P24: 34.6 | Q24: 9.611111111 | R24: 9162 | S24: 38.36 | T24: 10.65555556 | U24: 11957 | V24: 50.06 | W24: 13.90555556 | AC24: 100.0001
A25: 15 | B25: 94.6484 | C25: 2.9726 | D25: 1.0006 | E25: 0.1543 | F25: 0.1761 | G25: 0.0021 | H25: 0.0363 | I25: 0.0293 | J25: 0.028 | K25: 0.0066 | L25: 0.6995 | M25: 0.2461 | N25: 0.7123 | O25: 8302 | P25: 34.76 | Q25: 9.655555556 | R25: 9203 | S25: 38.53 | T25: 10.70277778 | U25: 11969 | V25: 50.11 | W25: 13.91944444 | X25: -15.9 | Y25: -8.6 | AC25: 99.9999
A26: 16 | B26: 94.343 | C26: 3.0954 | D26: 1.0789 | E26: 0.1623 | F26: 0.1996 | G26: 0.0023 | H26: 0.0431 | I26: 0.0359 | J26: 0.0367 | K26: 0.007 | L26: 0.7345 | M26: 0.2613 | N26: 0.7154 | O26: 8329 | P26: 34.87 | Q26: 9.686111111 | R26: 9229 | S26: 38.64 | T26: 10.73333333 | U26: 11978 | V26: 50.15 | W26: 13.93055556 | X26: -15.3 | Y26: -7 | AC26: 100 | AD26: ОК
A27: 17 | B27: 94.4432 | C27: 3.0037 | D27: 1.0396 | E27: 0.1569 | F27: 0.1961 | G27: 0.0022 | H27: 0.0436 | I27: 0.0364 | J27: 0.0419 | K27: 0.0067 | L27: 0.7791 | M27: 0.2506 | N27: 0.7145 | O27: 8314 | P27: 34.81 | Q27: 9.669444444 | R27: 9215 | S27: 38.58 | T27: 10.71666667 | U27: 11966 | V27: 50.1 | W27: 13.91666667 | X27: -14.8 | Y27: -6.4 | AC27: 100 | AD27: ОК
A28: 18 | B28: 94.4073 | C28: 2.9918 | D28: 1.0535 | E28: 0.1568 | F28: 0.2015 | G28: 0.0023 | H28: 0.0461 | I28: 0.0389 | J28: 0.0419 | K28: 0.0071 | L28: 0.802 | M28: 0.2508 | N28: 0.7149 | O28: 8317 | P28: 34.82 | Q28: 9.672222222 | R28: 9217 | S28: 38.59 | T28: 10.71944444 | U28: 11966 | V28: 50.1 | W28: 13.91666667 | X28: -14.6 | Y28: -5.7 | AC28: 100 | AD28: ОК
A29: 19 | B29: 94.3606 | C29: 3.0039 | D29: 1.0703 | E29: 0.1586 | F29: 0.2063 | G29: 0.0024 | H29: 0.0478 | I29: 0.0405 | J29: 0.0463 | K29: 0.0073 | L29: 0.8053 | M29: 0.2509 | N29: 0.7155 | O29: 8321 | P29: 34.84 | Q29: 9.677777778 | R29: 9222 | S29: 38.61 | T29: 10.725 | U29: 11969 | V29: 50.11 | W29: 13.91944444 | X29: -14.6 | Y29: -5.4 | AC29: 100.0002
A30: 20 | B30: 94.5498 | C30: 2.9595 | D30: 1.0306 | E30: 0.155 | F30: 0.1894 | G30: 0.0022 | H30: 0.0422 | I30: 0.0349 | J30: 0.0394 | K30: 0.0072 | L30: 0.741 | M30: 0.2488 | N30: 0.7136 | O30: 8312 | P30: 34.8 | Q30: 9.666666667 | R30: 9210 | S30: 38.56 | T30: 10.71111111 | U30: 11969 | V30: 50.11 | W30: 13.91944444 | AC30: 100 | AD30: =IF(AC30=100,"ОК"," ") -> ОК
A31: 21 | B31: 94.6219 | C31: 2.9391 | D31: 1.0142 | E31: 0.1525 | F31: 0.1825 | G31: 0.0022 | H31: 0.0402 | I31: 0.0329 | J31: 0.036 | K31: 0.0071 | L31: 0.7239 | M31: 0.2475 | N31: 0.7128 | O31: 8305 | P31: 34.77 | Q31: 9.658333333 | R31: 9205 | S31: 38.54 | T31: 10.70555556 | U31: 11969 | V31: 50.11 | W31: 13.91944444 | AC31: 100 | AD31: ОК
A32: 22 | B32: 94.4465 | C32: 2.9913 | D32: 1.039 | E32: 0.1548 | F32: 0.1945 | G32: 0.0023 | H32: 0.0443 | I32: 0.0368 | J32: 0.0407 | K32: 0.0065 | L32: 0.7921 | M32: 0.2511 | N32: 0.7144 | O32: 8312 | P32: 34.8 | Q32: 9.666666667 | R32: 9212 | S32: 38.57 | T32: 10.71388889 | U32: 11964 | V32: 50.09 | W32: 13.91388889 | X32: -14.1 | Y32: -6.2 | AC32: 99.9999
A33: 23 | B33: 93.9411 | C33: 3.1846 | D33: 1.1552 | E33: 0.1701 | F33: 0.2337 | G33: 0.0026 | H33: 0.0564 | I33: 0.0485 | J33: 0.0579 | K33: 0.0071 | L33: 0.8679 | M33: 0.2749 | N33: 0.7196 | O33: 8352 | P33: 34.97 | Q33: 9.713888889 | R33: 9255 | S33: 38.75 | T33: 10.76388889 | U33: 11976 | V33: 50.14 | W33: 13.92777778 | X33: -15 | Y33: -6.2 | AB33: відсутні | AC33: 100 | AD33: =IF(AC33=100,"ОК"," ") -> ОК
A34: 24 | B34: 94.1441 | C34: 3.1315 | D34: 1.1166 | E34: 0.1653 | F34: 0.2174 | G34: 0.0024 | H34: 0.0509 | I34: 0.0435 | J34: 0.0507 | K34: 0.007 | L34: 0.8024 | M34: 0.2683 | N34: 0.7176 | O34: 8340 | P34: 34.92 | Q34: 9.7 | R34: 9243 | S34: 38.7 | T34: 10.75 | U34: 11978 | V34: 50.15 | W34: 13.93055556 | X34: -14.6 | Y34: -5.6 | Z34: < 0,0001 | AA34: 0.0002 | AC34: 100.0001
A35: 25 | B35: 94.8687 | C35: 2.8986 | D35: 0.9477 | E35: 0.1454 | F35: 0.1565 | G35: 0.0019 | H35: 0.0314 | I35: 0.0249 | J35: 0.0278 | K35: 0.0075 | L35: 0.6523 | M35: 0.2374 | N35: 0.7101 | O35: 8288 | P35: 34.7 | Q35: 9.638888889 | R35: 9186 | S35: 38.46 | T35: 10.68333333 | U35: 11966 | V35: 50.1 | W35: 13.91666667 | X35: -13.8 | Y35: -4.9 | AC35: 100.0001
A36: 26 | B36: 95.176 | C36: 2.7829 | D36: 0.8834 | E36: 0.1383 | F36: 0.1336 | G36: 0.0017 | H36: 0.0237 | I36: 0.0174 | J36: 0.014 | K36: 0.0074 | L36: 0.6039 | M36: 0.2177 | N36: 0.7069 | O36: 8264 | P36: 34.6 | Q36: 9.611111111 | R36: 9162 | S36: 38.36 | T36: 10.65555556 | U36: 11961 | V36: 50.08 | W36: 13.91111111 | X36: -14.8 | Y36: -5.9 | AC36: 100 | AD36: ОК
A37: 27 | B37: 95.17 | C37: 2.7758 | D37: 0.9044 | E37: 0.1415 | F37: 0.1376 | G37: 0.0017 | H37: 0.0237 | I37: 0.0173 | J37: 0.0127 | K37: 0.0072 | L37: 0.5951 | M37: 0.2129 | N37: 0.7071 | O37: 8269 | P37: 34.62 | Q37: 9.616666667 | R37: 9167 | S37: 38.38 | T37: 10.66111111 | U37: 11966 | V37: 50.1 | W37: 13.91666667 | AC37: 99.9999
A38: 28 | B38: 95.292 | C38: 2.6879 | D38: 0.8808 | E38: 0.1399 | F38: 0.1373 | G38: 0.0017 | H38: 0.0239 | I38: 0.0176 | J38: 0.0129 | K38: 0.007 | L38: 0.5981 | M38: 0.201 | N38: 0.7062 | O38: 8262 | P38: 34.59 | Q38: 9.608333333 | R38: 9157 | S38: 38.34 | T38: 10.65 | U38: 11964 | V38: 50.09 | W38: 13.91388889 | AC38: =SUM(B38:M38)+$K$42+$N$42 -> 100.0001
A39: 29 | B39: 95.338 | C39: 2.6602 | D39: 0.8829 | E39: 0.1388 | F39: 0.1362 | G39: 0.0016 | H39: 0.0233 | I39: 0.0173 | J39: 0.0126 | K39: 0.007 | L39: 0.5827 | M39: 0.1994 | N39: 0.7059 | O39: 8259 | P39: 34.58 | Q39: 9.605555556 | R39: 9157 | S39: 38.34 | T39: 10.65 | U39: 11964 | V39: 50.09 | W39: 13.91388889 | X39: -16.1 | Y39: -5.6 | AC39: =SUM(B39:M39)+$K$42+$N$42 -> 100 | AD39: ОК
A40: 30 | B40: 94.8101 | C40: 2.9028 | D40: 0.9874 | E40: 0.1506 | F40: 0.1693 | G40: 0.0019 | H40: 0.0336 | I40: 0.0271 | J40: 0.0244 | K40: 0.0062 | L40: 0.6524 | M40: 0.2343 | N40: 0.7109 | O40: 8298 | P40: 34.74 | Q40: 9.65 | R40: 9196 | S40: 38.5 | T40: 10.69444444 | U40: 11973 | V40: 50.13 | W40: 13.925 | X40: -17 | Y40: -5.3 | AC40: =SUM(B40:M40)+$K$42+$N$42 -> 100.0001
A41: 31 | B41: 94.0038 | C41: 3.242 | D41: 1.1821 | E41: 0.1722 | F41: 0.2288 | G41: 0.0023 | H41: 0.0514 | I41: 0.0451 | J41: 0.0542 | K41: 0.0055 | L41: 0.7382 | M41: 0.2744 | N41: 0.7192 | O41: 8364 | P41: 35.02 | Q41: 9.727777778 | R41: 9270 | S41: 38.81 | T41: 10.78055556 | U41: 12000 | V41: 50.24 | W41: 13.95555556 | X41: -15.3 | Y41: -5.2 | AC41: =SUM(B41:M41)+$K$42+$N$42 -> 100 | AD41: ОК
A42: Рівень одоризації відповідає чинним нормативним документам | O42: 8290.906725 | P42: 34.71230873 | Q42: 9.642307981 | R42: 9189.723853 | S42: 38.47557559 | T42: 10.68765989
H43: Середньозважене значення теплоти згоряння:
B46: Начальник Миколаївського ЛВУМГ Литвинюк Є.О. 01.06.2017р.
C47: Підрозділу підприємства, якому підпорядкована лабораторія | O47: прізвище | R47: підпис | V47: дата
B48: Завідувач лабораторією Бартальова С.В. 01.06.2017р.
C49: Лабораторія, де здійснювалось вимірювання газу | O49: прізвище | R49: підпис | V49: дата
B50: Начальник служби метрології Бартальов Е.Ю. 01.06.2017р.
C51: Підрозділу, відповідального за облік газу за маршрутом | O51: прізвище | R51: підпис | V51: дата

Sheet додаток общ
A2: Додаток до Паспорту фізико-хімічних показників природного газу № 619
A4: Область | B4: ГРС, прямий споживач | C4: Cередньозважене значення вищої теплоти згоряння
C5: МДж/м³ | D5: ккал/м³ | E5: кВт*год./м³
A6: Миколаївська область | B6: ГРС-1м. Миколаїв вихід "місто" | C6: 38.47492878 | D6: 9189.578992 | E6: 10.68748022
B7: ГРС-1м. Миколаїв вихід "Океан" | C7: 38.47903594 | D7: 9190.559969 | E7: 10.68862109
B8: ГРС-2м. Миколаїв вихід "місто" | C8: 38.43727118 | D8: 9180.584629 | E8: 10.67701977
B9: ГРС МГЗ вихід Галицинівка | C9: 38.47182974 | D9: 9188.838799 | E9: 10.68661937
B10: ГРС с.Володимирівка | C10: 38.47790218 | D10: 9190.289176 | E10: 10.68830616
B11: ГРС с. Новоукраїнка | C11: 38.48026701 | D11: 9190.854006 | E11: 10.68896306
B12: ГРС смт. Березнегувате | C12: 38.47630348 | D12: 9189.907332 | E12: 10.68786208
B13: ГРС Новосевастополь | C13: 38.47982991 | D13: 9190.749606 | E13: 10.68884164
B14: ГРС с. Новоіванівка | C14: 38.47642786 | D14: 9189.937042 | E14: 10.68789663
B15: ГРС м. Баштанка | C15: 38.4747774 | D15: 9189.542835 | E15: 10.68743817
B16: ГРС Новий Буг | C16: 38.48273933 | D16: 9191.444509 | E16: 10.68964981
B17: ГРС с. Лоцкіне | C17: 38.47334816 | D17: 9189.201467 | E17: 10.68704116
B18: ГРС Новоєгорівка | C18: 38.47792748 | D18: 9190.29522 | E18: 10.68831319
B19: ГРС Мар'ївка | C19: 38.4797214 | D19: 9190.72369 | E19: 10.6888115
B20: ГРС Грейгове | C20: 38.47667115 | D20: 9189.995151 | E20: 10.68796421
B21: ГРС Горохівка | C21: 38.47515192 | D21: 9189.632288 | E21: 10.6875422
B22: ГРС с. Новомиколаївка | C22: 38.47387994 | D22: 9189.32848 | E22: 10.68718887
B23: ГРС Прибузьке | C23: 38.47670164 | D23: 9190.002432 | E23: 10.68797268
B24: ГРС Інгулка | C24: 38.4740738 | D24: 9189.374783 | E24: 10.68724272
B25: ГРС Персадівка | C25: 38.46038558 | D25: 9186.105409 | E25: 10.68344044
B26: ГРС Снігурівка | C26: 38.49050541 | D26: 9193.299405 | E26: 10.69180706
B27: ГРС м. Казанка | C27: 38.48311942 | D27: 9191.535293 | E27: 10.68975539
B28: ГРС с. Миколо- Гулак | C28: 38.47746506 | D28: 9190.184771 | E28: 10.68818474
B29: ГРС Крива Балка | C29: 38.48110743 | D29: 9191.054737 | E29: 10.68919651
B30: ГРС с. Ольшанське вихід поселок | C30: 38.47262869 | D30: 9189.029625 | E30: 10.6868413
B31: ГРС с. Ольшанське вихід ОЦЗ | C31: 38.46121489 | D31: 9186.303485 | E31: 10.6836708
B32: ГРС с. Кандибіне | C32: 38.4709686 | D32: 9188.63312 | E32: 10.68638017
B33: ГРС Гур’ївка | C33: 38.4763734 | D33: 9189.924034 | E33: 10.6878815
B34: ГРС с. Себине | C34: 38.47360493 | D34: 9189.262795 | E34: 10.68711248
B35: ГРС Нова Одеса | C35: 38.47983561 | D35: 9190.750968 | E35: 10.68884322
B36: ГРС Підлісне | C36: 38.47260531 | D36: 9189.02404 | E36: 10.68683481
B37: ГРС Єланець | C37: 38.48789212 | D37: 9192.675234 | E37: 10.69108115
B38: ГРС Веселий подол | C38: 38.47427384 | D38: 9189.422563 | E38: 10.68729829
B39: ГРС Щербані | C39: 38.46714124 | D39: 9187.718969 | E39: 10.68531701
B40: ГРС Дорошівка | C40: 38.47821246 | D40: 9190.363285 | E40: 10.68839235
B41: ГРС Вознесенськ | C41: 38.48080018 | D41: 9190.981353 | E41: 10.68911116
B42: ГРС Кам’янка | C42: 38.46989133 | D42: 9188.375818 | E42: 10.68608093
B43: ГРС с. Рівне | C43: 38.4921661 | D43: 9193.696055 | E43: 10.69226836
B44: ГРС Очаків вихід "місто" | C44: 38.47419649 | D44: 9189.404087 | E44: 10.6872768
B45: ГРС Ульянівка | C45: 38.47719186 | D45: 9190.119519 | E45: 10.68810885
B46: ГРС Ч. Поле | C46: 38.46935823 | D46: 9188.248489 | E46: 10.68593284
B47: ГРС Ш. Лан | C47: 38.47589385 | D47: 9189.809496 | E47: 10.68774829
B48: ГРС Олексіївка | C48: 38.47897024 | D48: 9190.544279 | E48: 10.68860285
B49: ГРС Веселинове | C49: 38.47448867 | D49: 9189.473874 | E49: 10.68735796
B50: ГРС Березанка | C50: 38.47679819 | D50: 9190.025493 | E50: 10.6879995
B51: ГРС Дмитріївка | C51: 38.47430354 | D51: 9189.429656 | E51: 10.68730654
B52: ГРС. Кубряки | C52: 38.45926682 | D52: 9185.838196 | E52: 10.68312967
B53: ПВВГ Ряснопіль | C53: 38.47483871 | D53: 9189.557479 | E53: 10.6874552
B54: ДПНВКГ "Зоря-Машпроект" | C54: 38.54805736 | D54: 9207.045453 | E54: 10.70779371
B55: АГНКС-1 м. Миколаїв | C55: 38.50862888 | D55: 9197.628123 | E55: 10.69684136
B56: АГНКС-2 м. Миколаїв | C56: 38.48446337 | D56: 9191.856289 | E56: 10.69012871
B57: ТОВ "МГЗ" | C57: 38.47635491 | D57: 9189.919618 | E57: 10.68787636
B58: ТОВ "Сандора" | C58: 38.49516869 | D58: 9194.413212 | E58: 10.69310241
B59: АГНКС-1 м.Нова Одеса | C59: 38.48034444 | D59: 9190.872501 | E59: 10.68898457
A60: Середньозважене значення вищої теплоти згоряння по маршруту № 619 | C60: 38.48 | D60: 9190 | E60: 10.69
A64: Начальник Миколаївського ЛВУМГ Литвинюк Є.О. 01.06.2017 р.
A65: Підрозділу підприємства, якому підпорядкована лабораторія | D65: прізвище | E65: підпис
A66: Завідувач лабораторією Бартальова С.В. 01.06.2017 р.
A67: Лабораторія, де здійснювалось вимірювання газу | D67: прізвище | E67: підпис
A68: Начальник служби метрології Бартальов Е.Ю. 01.06.2017 р.
A69: Підрозділу, відповідального за облік газу за маршрутом | D69: прізвище | E69: підпис

Sheet variablesList (hidden)
A1: 3 | B1: x:\gaysin | C1: 10, 11, 24, 25, 127, 128, 132, 180, 207, 215 | D1: x:\
B2: x:\Illinci
B3: x:\Talne
